fUSD/lending_fUSD_20250217
["ID","MTS","AMOUNT","RATE_DAILY","PERIOD"]
[353357843,1739794258711,-501.64927883,0.0001378,2]
[353357844,1739794258721,-515.34707925,0.0001378,2]
[353357845,1739794258731,-500.0,0.0001378,2]
[353357846,1739794258740,-503.76665508,0.0001378,2]
[353357847,1739794258750,-500.0,0.0001378,2]
[353357848,1739794258759,-178.4177276,0.0001378,2]
[353357849,1739794258770,-500.0,0.0001378,2]
[353357850,1739794258780,-576.57803035,0.0001378,2]
[353357851,1739794258789,-500.0,0.0001378,2]
[353357852,1739794258798,-635.48,0.0001378,2]
[353357853,1739794258807,-500.0,0.0001378,2]
[353357854,1739794258816,-671.56,0.0001378,2]
[353357855,1739794258826,-500.0,0.0001378,2]
[353357856,1739794258835,-500.0,0.0001378,2]
[353357857,1739794258844,-817.59,0.0001378,2]
[353357858,1739794258853,-500.0,0.0001378,2]
[353357859,1739794258863,-151.0,0.0001378,2]
[353357860,1739794258872,-500.0,0.0001378,2]
[353357861,1739794258881,-151.0,0.0001378,2]
[353357862,1739794258891,-954.66,0.0001378,2]
[353357863,1739794258900,-500.0,0.0001378,2]
[353357864,1739794258909,-500.0,0.0001378,2]
[353357865,1739794258918,-522.5,0.0001378,2]
[353357866,1739794258927,-500.0,0.0001378,2]
[353357867,1739794258938,-500.0,0.0001378,2]
[353357868,1739794258948,-500.0,0.0001378,2]
[353357869,1739794258957,-500.0,0.0001378,2]
[353357870,1739794258967,-1099.49,0.0001378,2]
[353357871,1739794258976,-559.5,0.0001378,2]
[353357872,1739794258985,-184.9703,0.0001378,2]
[353357873,1739794258994,-500.0,0.0001378,2]
[353357874,1739794259004,-500.0,0.0001378,2]
[353357875,1739794259013,-646.75,0.0001378,2]
[353357876,1739794259022,-500.0,0.0001378,2]
[353357877,1739794259031,-503.97429505,0.0001378,2]
[353357878,1739794259041,-843.44,0.0001378,2]
[353357879,1739794259050,-500.0,0.0001378,2]
[353357880,1739794259059,-500.0,0.0001378,2]
[353357881,1739794259068,-500.0,0.0001378,2]
[353357882,1739794259077,-848.29,0.0001378,2]
[353357883,1739794259086,-500.0,0.0001378,2]
[353357884,1739794259095,-500.0,0.0001378,2]
[353357885,1739794259104,-638.27,0.0001378,2]
[353357886,1739794259113,-500.0,0.0001378,2]
[353357887,1739794259122,-500.0,0.0001378,2]
[353357888,1739794259132,-984.33,0.0001378,2]
[353357889,1739794259141,-500.0,0.0001378,2]
[353357890,1739794259150,-500.0,0.0001378,2]
[353357891,1739794259159,-500.0,0.0001378,2]
[353357892,1739794259168,-507.00676623,0.0001378,2]
[353357893,1739794259178,-505.63498316,0.0001378,2]
[353357894,1739794259187,-500.0,0.0001378,2]
[353357895,1739794259197,-727.27,0.0001378,2]
[353357896,1739794259206,-934.69,0.0001378,2]
[353357897,1739794259217,-500.0,0.0001378,2]
[353357898,1739794259228,-500.0,0.0001378,2]
[353357899,1739794259238,-980.72,0.0001378,2]
[353357900,1739794259248,-566.72,0.0001378,2]
[353357901,1739794259258,-500.0,0.0001378,2]
[353357902,1739794259268,-500.0,0.0001378,2]
[353357903,1739794259277,-1230.89,0.0001378,2]
[353357904,1739794259287,-1177.91,0.0001378,2]
[353357905,1739794259298,-500.0,0.0001378,2]
[353357906,1739794259309,-500.0,0.0001378,2]
[353357907,1739794259319,-197.895971,0.0001378,2]
[353357908,1739794259330,-500.0,0.0001378,2]
[353357909,1739794259340,-500.0,0.0001378,2]
[353357910,1739794259351,-852.43,0.0001378,2]
[353357911,1739794259361,-197.895971,0.0001378,2]
[353357912,1739794259371,-500.0,0.0001378,2]
[353357913,1739794259382,-500.0,0.0001378,2]
[353357914,1739794259392,-552.6,0.0001378,2]
[353357915,1739794259401,-500.0,0.0001378,2]
[353357916,1739794259412,-1409.76,0.0001378,2]
[353357917,1739794259423,-500.0,0.0001378,2]
[353357918,1739794259434,-500.0,0.0001378,2]
[353357919,1739794259444,-500.0,0.0001378,2]
[353357920,1739794259454,-500.0,0.0001378,2]
[353357921,1739794259463,-500.0,0.0001378,2]
[353357922,1739794259473,-748.47,0.0001378,2]
[353357923,1739794259482,-500.0,0.0001378,2]
[353357924,1739794259490,-500.0,0.0001378,2]
[353357925,1739794259499,-500.0,0.0001378,2]
[353357926,1739794259509,-500.0,0.0001378,2]
[353357927,1739794259518,-500.0,0.0001378,2]
[353357928,1739794259528,-1266.32,0.0001378,2]
[353357929,1739794259538,-1287.09,0.0001378,2]
[353357930,1739794259550,-151.0,0.0001378,2]
[353357931,1739794259560,-500.0,0.0001378,2]
[353357932,1739794259570,-500.0,0.0001378,2]
[353357933,1739794259579,-500.0,0.0001378,2]
[353357934,1739794259589,-500.0,0.0001378,2]
[353357935,1739794259598,-1536.68,0.0001378,2]
[353357936,1739794259606,-500.0,0.0001378,2]
[353357937,1739794259617,-500.0,0.0001378,2]
[353357938,1739794259626,-500.0,0.0001378,2]
[353357939,1739794259635,-534.97,0.0001378,2]
[353357940,1739794259644,-1294.42,0.0001378,2]
[353357941,1739794259654,-500.0,0.0001378,2]
[353357942,1739794259663,-500.0,0.0001378,2]
[353357943,1739794259673,-526.12,0.0001378,2]
[353357944,1739794259682,-151.0,0.0001378,2]
[353357945,1739794259691,-500.0,0.0001378,2]
[353357946,1739794259701,-968.26,0.0001378,2]
[353357947,1739794259712,-500.0,0.0001378,2]
[353357948,1739794259723,-500.0,0.0001378,2]
[353357949,1739794259732,-500.0,0.0001378,2]
[353357950,1739794259746,-500.0,0.0001378,2]
[353357951,1739794259755,-500.0,0.0001378,2]
[353357952,1739794259766,-157.45819004,0.0001378,2]
[353357953,1739794259775,-250.177577,0.0001378,2]
[353357954,1739794259785,-1012.04,0.0001378,2]
[353357955,1739794259795,-500.0,0.0001378,2]
[353357956,1739794259805,-500.0,0.0001378,2]
[353357957,1739794259816,-500.0,0.0001378,2]
[353357958,1739794259826,-241.4556,0.0001378,2]
[353357959,1739794259835,-500.0,0.0001378,2]
[353357960,1739794259844,-500.0,0.0001378,2]
[353357961,1739794259854,-500.0,0.0001378,2]
[353357962,1739794259863,-883.87,0.0001378,2]
[353357963,1739794259873,-241.4556,0.0001378,2]
[353357964,1739794259883,-1048.74,0.0001378,2]
[353357965,1739794259894,-512.54367532,0.0001378,2]
[353357966,1739794259904,-500.0,0.0001378,2]
[353357967,1739794259914,-500.0,0.0001378,2]
[353357968,1739794259923,-500.0,0.0001378,2]
[353357969,1739794259932,-500.0,0.0001378,2]
[353357970,1739794259942,-500.0,0.0001378,2]
[353357971,1739794259951,-500.0,0.0001378,2]
[353357972,1739794259961,-500.0,0.0001378,2]
[353357973,1739794259970,-732.77,0.0001378,2]
[353357974,1739794259979,-500.0,0.0001378,2]
[353357975,1739794259988,-500.0,0.0001378,2]
[353357976,1739794259999,-500.0,0.0001378,2]
[353357977,1739794260009,-500.0,0.0001378,2]
[353357978,1739794260019,-500.0,0.0001378,2]
[353357979,1739794260029,-500.0,0.0001378,2]
[353357980,1739794260038,-533.31,0.0001378,2]
[353357981,1739794260047,-679.11,0.0001378,2]
[353357982,1739794260057,-500.0,0.0001378,2]
[353357983,1739794260066,-500.0,0.0001378,2]
[353357984,1739794260076,-500.0,0.0001378,2]
[353357985,1739794260085,-355.04973881,0.0001378,2]
[353357986,1739794260094,-481.44300353,0.0001378,2]
[353357987,1739794260103,-151.0,0.0001378,2]
[353357988,1739794260113,-500.0,0.0001378,2]
[353357989,1739794260122,-657.17,0.0001378,2]
[353357990,1739794260131,-500.0,0.0001378,2]
[353357991,1739794260141,-1599.18,0.0001378,2]
[353357992,1739794260150,-500.0,0.0001378,2]
[353357993,1739794260160,-500.0,0.0001378,2]
[353357994,1739794260169,-500.0,0.0001378,2]
[353357995,1739794260178,-500.0,0.0001378,2]
[353357996,1739794260187,-500.0,0.0001378,2]
[353357997,1739794260196,-500.0,0.0001378,2]
[353357998,1739794260206,-500.0,0.0001378,2]
[353357999,1739794260214,-500.0,0.0001378,2]
[353358000,1739794260223,-500.0,0.0001378,2]
[353358001,1739794260233,-500.0,0.0001378,2]
[353358002,1739794260242,-924.61,0.0001378,2]
[353358003,1739794260251,-500.0,0.0001378,2]
[353358004,1739794260260,-954.96,0.0001378,2]
[353358005,1739794260270,-243.3800064,0.0001378,2]
[353358006,1739794260279,-500.0,0.0001378,2]
[353358007,1739794260288,-500.0,0.0001378,2]
[353358008,1739794260298,-271.44745463,0.0001378,2]
[353358009,1739794260307,-500.0,0.0001378,2]
[353358010,1739794260315,-1627.19,0.0001378,2]
[353358011,1739794260325,-500.0,0.0001378,2]
[353358012,1739794260334,-500.0,0.0001378,2]
[353358013,1739794260342,-500.0,0.0001378,2]
[353358014,1739794260351,-500.0,0.0001378,2]
[353358015,1739794260361,-500.0,0.0001378,2]
[353358016,1739794260371,-500.0,0.0001378,2]
[353358017,1739794260381,-500.0,0.0001378,2]
[353358018,1739794260390,-500.0,0.0001378,2]
[353358019,1739794260402,-1301.64,0.0001378,2]
[353358020,1739794260411,-410.06900859,0.0001378,2]
[353358021,1739794260422,-500.0,0.0001378,2]
[353358022,1739794260432,-500.0,0.0001378,2]
[353358023,1739794260441,-1071.39,0.0001378,2]
[353358024,1739794260450,-739.93,0.0001378,2]
[353358025,1739794260459,-500.0,0.0001378,2]
[353358026,1739794260468,-689.47,0.0001378,2]
[353358027,1739794260477,-500.0,0.0001378,2]
[353358028,1739794260486,-500.0,0.0001378,2]
[353358029,1739794260495,-500.0,0.0001378,2]
[353358030,1739794260505,-500.0,0.0001378,2]
[353358031,1739794260514,-500.0,0.0001378,2]
[353358032,1739794260523,-1535.22,0.0001378,2]
[353358033,1739794260533,-1422.56,0.0001378,2]
[353358034,1739794260544,-500.0,0.0001378,2]
[353358035,1739794260712,-500.0,0.0001378,2]
[353358036,1739794260722,-500.0,0.0001378,2]
[353358037,1739794260731,-1002.89,0.0001378,2]
[353358038,1739794260740,-502.5139574,0.0001378,2]
[353358039,1739794260749,-178.918646,0.0001378,2]
[353358040,1739794260758,-500.0,0.0001378,2]
[353358041,1739794260768,-1444.68,0.0001378,2]
[353358042,1739794260778,-500.0,0.0001378,2]
[353358043,1739794260787,-805.49,0.0001378,2]
[353358044,1739794260796,-500.0,0.0001378,2]
[353358045,1739794260805,-500.0,0.0001378,2]
[353358046,1739794260814,-500.0,0.0001378,2]
[353358047,1739794260823,-500.0,0.0001378,2]
[353358048,1739794260833,-1013.65,0.0001378,2]
[353358049,1739794260841,-760.9,0.0001378,2]
[353358050,1739794260851,-602.76,0.0001378,2]
[353358051,1739794260860,-500.0,0.0001378,2]
[353358052,1739794260869,-500.0,0.0001378,2]
[353358053,1739794260880,-500.0,0.0001378,2]
[353358054,1739794260889,-500.0,0.0001378,2]
[353358055,1739794260899,-500.0,0.0001378,2]
[353358056,1739794260908,-500.0,0.0001378,2]
[353358057,1739794260918,-500.0,0.0001378,2]
[353358058,1739794260928,-1107.54,0.0001378,2]
[353358059,1739794260938,-504.77748696,0.0001378,2]
[353358060,1739794260948,-500.0,0.0001378,2]
[353358061,1739794260958,-500.0,0.0001378,2]
[353358062,1739794260968,-500.0,0.0001378,2]
[353358063,1739794260978,-1505.36,0.0001378,2]
[353358064,1739794260987,-500.0,0.0001378,2]
[353358065,1739794260997,-500.0,0.0001378,2]
[353358066,1739794261006,-500.0,0.0001378,2]
[353358067,1739794261015,-500.0,0.0001378,2]
[353358068,1739794261024,-1375.93,0.0001378,2]
[353358069,1739794261033,-643.74,0.0001378,2]
[353358070,1739794261042,-500.0,0.0001378,2]
[353358071,1739794261051,-500.0,0.0001378,2]
[353358072,1739794261060,-500.0,0.0001378,2]
[353358073,1739794261068,-1433.6,0.0001378,2]
[353358074,1739794261077,-868.28,0.0001378,2]
[353358075,1739794261086,-500.0,0.0001378,2]
[353358076,1739794261097,-994.53,0.0001378,2]
[353358077,1739794261107,-500.0,0.0001378,2]
[353358078,1739794261116,-500.0,0.0001378,2]
[353358079,1739794261125,-500.0,0.0001378,2]
[353358080,1739794261135,-500.0,0.0001378,2]
[353358081,1739794261144,-203.56362361,0.0001378,2]
[353358082,1739794261153,-500.0,0.0001378,2]
[353358083,1739794261162,-504.08259438,0.0001378,2]
[353358084,1739794261171,-151.0,0.0001378,2]
[353358085,1739794261180,-1000.78,0.0001378,2]
[353358086,1739794261189,-550.96,0.0001378,2]
[353358087,1739794261198,-500.0,0.0001378,2]
[353358088,1739794261208,-939.86,0.0001378,2]
[353358089,1739794261217,-151.0,0.0001378,2]
[353358090,1739794261226,-1366.12,0.0001378,2]
[353358091,1739794261234,-500.0,0.0001378,2]
[353358092,1739794261243,-500.0,0.0001378,2]
[353358093,1739794261252,-500.0,0.0001378,2]
[353358094,1739794261261,-500.0,0.0001378,2]
[353358095,1739794261274,-500.0,0.0001378,2]
[353358096,1739794261283,-500.0,0.0001378,2]
[353358097,1739794261292,-500.0,0.0001378,2]
[353358098,1739794261301,-552.63,0.0001378,2]
[353358099,1739794261311,-500.0,0.0001378,2]
[353358100,1739794261322,-414.79959923,0.0001378,2]
[353358101,1739794261332,-500.0,0.0001378,2]
[353358102,1739794261342,-500.0,0.0001378,2]
[353358103,1739794261351,-871.71,0.0001378,2]
[353358104,1739794261360,-1581.99,0.0001378,2]
[353358105,1739794261371,-1390.42,0.0001378,2]
[353358106,1739794261380,-500.0,0.0001378,2]
[353358107,1739794261389,-500.0,0.0001378,2]
[353358108,1739794261398,-500.0,0.0001378,2]
[353358109,1739794261408,-500.0,0.0001378,2]
[353358110,1739794261418,-500.0,0.0001378,2]
[353358111,1739794261429,-151.0,0.0001378,2]
[353358112,1739794261439,-630.86,0.0001378,2]
[353358113,1739794261450,-500.0,0.0001378,2]
[353358114,1739794261459,-500.0,0.0001378,2]
[353358115,1739794261468,-1386.22,0.0001378,2]
[353358116,1739794261477,-208.29229401,0.0001378,2]
[353358117,1739794261487,-500.0,0.0001378,2]
[353358118,1739794261495,-500.0,0.0001378,2]
[353358119,1739794261505,-640.43263369,0.0001378,2]
[353358120,1739794261515,-151.0,0.0001378,2]
[353358121,1739794261524,-500.0,0.0001378,2]
[353358122,1739794261534,-500.0,0.0001378,2]
[353358123,1739794261546,-1364.32,0.0001378,2]
[353358124,1739794261556,-500.0,0.0001378,2]
[353358125,1739794261565,-500.0,0.0001378,2]
[353358126,1739794261574,-500.0,0.0001378,2]
[353358127,1739794261584,-699.39,0.0001378,2]
[353358128,1739794261593,-500.0,0.0001378,2]
[353358129,1739794261602,-514.24243691,0.0001378,2]
[353358130,1739794261611,-500.0,0.0001378,2]
[353358131,1739794261621,-500.0,0.0001378,2]
[353358132,1739794261631,-172.239129,0.0001378,2]
[353358133,1739794261640,-500.0,0.0001378,2]
[353358134,1739794261649,-500.0,0.0001378,2]
[353358135,1739794261659,-689.64,0.0001378,2]
[353358136,1739794261668,-500.0,0.0001378,2]
[353358137,1739794261678,-172.239129,0.0001378,2]
[353358138,1739794261687,-500.0,0.0001378,2]
[353358139,1739794261696,-5012.947751,0.0001378,2]
[353358140,1739794261705,-151.0,0.0001378,2]
[353358141,1739794261714,-757.91,0.0001378,2]
[353358142,1739794261724,-500.0,0.0001378,2]
[353358143,1739794261733,-1080.43,0.0001378,2]
[353358144,1739794261743,-500.0,0.0001378,2]
[353358145,1739794261753,-500.0,0.0001378,2]
[353358146,1739794261763,-501.70268993,0.0001378,2]
[353358147,1739794261773,-1126.93,0.0001378,2]
[353358148,1739794261782,-4263.05,0.0001378,2]
[353358149,1739794261793,-151.0,0.0001378,2]
[353358150,1739794261802,-500.0,0.0001378,2]
[353358151,1739794261811,-500.0,0.0001378,2]
[353358152,1739794261822,-500.0,0.0001378,2]
[353358153,1739794261832,-500.0,0.0001378,2]
[353358154,1739794261842,-151.0,0.0001378,2]
[353358155,1739794261851,-713.65,0.0001378,2]
[353358156,1739794261860,-774.12,0.0001378,2]
[353358157,1739794261870,-500.0,0.0001378,2]
[353358158,1739794261879,-151.0,0.0001378,2]
[353358159,1739794261888,-500.0,0.0001378,2]
[353358160,1739794261898,-1780.75,0.0001378,2]
[353358161,1739794261908,-838.69,0.0001378,2]
[353358162,1739794261917,-500.0,0.0001378,2]
[353358163,1739794261927,-500.0,0.0001378,2]
[353358164,1739794261937,-500.0,0.0001378,2]
[353358165,1739794261947,-1255.28,0.0001378,2]
[353358166,1739794261957,-1589.33,0.0001378,2]
[353358167,1739794261967,-926.78,0.0001378,2]
[353358168,1739794261976,-500.0,0.0001378,2]
[353358169,1739794261985,-500.0,0.0001378,2]
[353358170,1739794261995,-500.0,0.0001378,2]
[353358171,1739794262005,-3885.31,0.0001378,2]
[353358172,1739794262014,-2355.25,0.0001378,2]
[353358173,1739794262024,-1086.37,0.0001378,2]
[353358174,1739794262033,-500.0,0.0001378,2]
[353358175,1739794262043,-500.0,0.0001378,2]
[353358176,1739794262052,-1408.68,0.0001378,2]
[353358177,1739794262066,-672.56,0.0001378,2]
[353358178,1739794262083,-500.0,0.0001378,2]
[353358179,1739794262101,-500.0,0.0001378,2]
[353358180,1739794262111,-500.0,0.0001378,2]
[353358181,1739794262120,-785.05,0.0001378,2]
[353358182,1739794262130,-3491.5,0.0001378,2]
[353358183,1739794262141,-500.0,0.0001378,2]
[353358184,1739794262150,-500.0,0.0001378,2]
[353358185,1739794262160,-1284.57,0.0001378,2]
[353358186,1739794262169,-500.0,0.0001378,2]
[353358187,1739794262179,-500.0,0.0001378,2]
[353358188,1739794262188,-1230.93,0.0001378,2]
[353358189,1739794262198,-500.0,0.0001378,2]
[353358190,1739794262207,-1223.0,0.0001378,2]
[353358191,1739794262216,-500.0,0.0001378,2]
[353358192,1739794262226,-500.0,0.0001378,2]
[353358193,1739794262235,-500.0,0.0001378,2]
[353358194,1739794262245,-500.0,0.0001378,2]
[353358195,1739794262254,-500.70398151,0.0001378,2]
[353358196,1739794262263,-500.0,0.0001378,2]
[353358197,1739794262274,-2257.81,0.0001378,2]
[353358198,1739794262283,-2430.11,0.0001378,2]
[353358199,1739794262292,-500.0,0.0001378,2]
[353358200,1739794262302,-2742.38,0.0001378,2]
[353358201,1739794262311,-1185.12,0.0001378,2]
[353358202,1739794262321,-1717.37,0.0001378,2]
[353358203,1739794262330,-500.0,0.0001378,2]
[353358204,1739794262340,-500.0,0.0001378,2]
[353358205,1739794262350,-500.0,0.0001378,2]
[353358206,1739794262359,-500.0,0.0001378,2]
[353358207,1739794262368,-2123.32,0.0001378,2]
[353358208,1739794262378,-500.0,0.0001378,2]
[353358209,1739794262388,-500.0,0.0001378,2]
[353358210,1739794262398,-1497.33,0.0001378,2]
[353358211,1739794262408,-500.0,0.0001378,2]
[353358212,1739794262417,-500.0,0.0001378,2]
[353358213,1739794262427,-6254.78,0.0001378,2]
[353358214,1739794262438,-1224.8,0.0001378,2]
[353358215,1739794262447,-650.23,0.0001378,2]
[353358216,1739794262456,-500.0,0.0001378,2]
[353358217,1739794262465,-500.0,0.0001378,2]
[353358218,1739794262475,-659.89,0.0001378,2]
[353358219,1739794262485,-500.0,0.0001378,2]
[353358220,1739794262495,-500.0,0.0001378,2]
[353358221,1739794262505,-517.49680891,0.0001378,2]
[353358222,1739794262514,-4115.96,0.0001378,2]
[353358223,1739794262525,-500.0,0.0001378,2]
[353358224,1739794262534,-1639.47,0.0001378,2]
[353358225,1739794262547,-1458.1,0.0001378,2]
[353358226,1739794262556,-957.89,0.0001378,2]
[353358227,1739794262565,-1704.93,0.0001378,2]
[353358228,1739794262575,-3752.93,0.0001378,2]
[353358229,1739794262586,-500.0,0.0001378,2]
[353358230,1739794262595,-554.06,0.0001378,2]
[353358231,1739794262606,-151.0,0.0001378,2]
[353358232,1739794262617,-500.0,0.0001378,2]
[353358233,1739794262627,-500.0,0.0001378,2]
[353358234,1739794262637,-500.0,0.0001378,2]
[353358235,1739794262647,-2442.56,0.0001378,2]
[353358236,1739794262656,-1956.36,0.0001378,2]
[353358237,1739794262666,-787.28,0.0001378,2]
[353358238,1739794262675,-1769.11,0.0001378,2]
[353358239,1739794262684,-500.0,0.0001378,2]
[353358240,1739794262693,-1875.48,0.0001378,2]
[353358241,1739794262703,-151.0,0.0001378,2]
[353358242,1739794262712,-151.0,0.0001378,2]
[353358243,1739794262722,-511.84,0.0001378,2]
[353358244,1739794262732,-205.621676,0.0001378,2]
[353358245,1739794262741,-500.0,0.0001378,2]
[353358246,1739794262751,-1455.23,0.0001378,2]
[353358247,1739794262761,-1940.73,0.0001378,2]
[353358248,1739794262772,-362.49654168,0.0001378,2]
[353358249,1739794262781,-2701.9,0.0001378,2]
[353358250,1739794262791,-230.990871,0.0001378,2]
[353358251,1739794262802,-205.621676,0.0001378,2]
[353358252,1739794262811,-500.0,0.0001378,2]
[353358253,1739794262821,-1768.1,0.0001378,2]
[353358254,1739794262830,-3613.68,0.0001378,2]
[353358255,1739794262840,-873.65,0.0001378,2]
[353358256,1739794262849,-862.29482578,0.0001378,2]
[353358257,1739794262858,-534.37,0.0001378,2]
[353358258,1739794262867,-500.0,0.0001378,2]
[353358259,1739794262877,-2439.06,0.0001378,2]
[353358260,1739794262887,-3181.54,0.0001378,2]
[353358261,1739794262897,-2029.32,0.0001378,2]
[353358262,1739794262907,-1331.2,0.0001378,2]
[353358263,1739794262917,-854.11,0.0001378,2]
[353358264,1739794262927,-1671.96,0.0001378,2]
[353358265,1739794262937,-500.0,0.0001378,2]
[353358266,1739794262947,-500.0,0.0001378,2]
[353358267,1739794262957,-2055.83,0.0001378,2]
[353358268,1739794262967,-524.54,0.0001378,2]
[353358269,1739794262980,-2860.85,0.0001378,2]
[353358270,1739794262990,-2214.13,0.0001378,2]
[353358271,1739794263000,-1735.13,0.0001378,2]
[353358272,1739794263010,-1515.74,0.0001378,2]
[353358273,1739794263023,-594.98,0.0001378,2]
[353358274,1739794263033,-500.0,0.0001378,2]
[353358275,1739794263042,-2254.71,0.0001378,2]
[353358276,1739794263052,-566.4,0.0001378,2]
[353358277,1739794263062,-500.0,0.0001378,2]
[353358278,1739794263072,-500.0,0.0001378,2]
[353358279,1739794263086,-2727.28,0.0001378,2]
[353358280,1739794263097,-500.0,0.0001378,2]
[353358281,1739794263107,-1821.02,0.0001378,2]
[353358282,1739794263118,-165.171113,0.0001378,2]
[353358283,1739794263129,-500.0,0.0001378,2]
[353358284,1739794263140,-2445.9,0.0001378,2]
[353358285,1739794263150,-500.0,0.0001378,2]
[353358286,1739794263160,-151.0,0.0001378,2]
[353358287,1739794263170,-500.0,0.0001378,2]
[353358288,1739794263180,-500.0,0.0001378,2]
[353358289,1739794263190,-734.89,0.0001378,2]
[353358290,1739794263200,-165.171113,0.0001378,2]
[353358291,1739794263210,-501.07471443,0.0001378,2]
[353358292,1739794263219,-2732.76,0.0001378,2]
[353358293,1739794263229,-1594.38,0.0001378,2]
[353358294,1739794263238,-151.0,0.0001378,2]
[353358295,1739794263247,-2514.23,0.0001378,2]
[353358296,1739794263258,-500.0,0.0001378,2]
[353358297,1739794263267,-500.0,0.0001378,2]
[353358298,1739794263279,-500.0,0.0001378,2]
[353358299,1739794263290,-500.0,0.0001378,2]
[353358300,1739794263300,-2274.81,0.0001378,2]
[353358301,1739794263310,-767.59,0.0001378,2]
[353358302,1739794263320,-2319.81,0.0001378,2]
[353358303,1739794263331,-500.0,0.0001378,2]
[353358304,1739794263342,-2513.14,0.0001378,2]
[353358305,1739794263352,-1062.64,0.0001378,2]
[353358306,1739794263510,-1656.19,0.0001378,2]
[353358307,1739794263538,-2840.66,0.0001378,2]
[353358308,1739794263552,-1730.16,0.0001378,2]
[353358309,1739794263562,-500.0,0.0001378,2]
[353358310,1739794263573,-984.5,0.0001378,2]
[353358311,1739794263586,-500.0,0.0001378,2]
[353358312,1739794263596,-151.0,0.0001378,2]
[353358313,1739794263606,-932.78,0.0001378,2]
[353358314,1739794263617,-8722.05,0.0001378,2]
[353358315,1739794263628,-546.51,0.0001378,2]
[353358316,1739794263637,-2737.06,0.0001378,2]
[353358317,1739794263647,-151.0,0.0001378,2]
[353358318,1739794263656,-2870.18,0.0001378,2]
[353358319,1739794263666,-1293.2,0.0001378,2]
[353358320,1739794263676,-261.6,0.0001378,2]
[353358321,1739794263685,-500.0,0.0001378,2]
[353358322,1739794263695,-500.0,0.0001378,2]
[353358323,1739794263704,-1695.55,0.0001378,2]
[353358324,1739794263713,-500.0,0.0001378,2]
[353358325,1739794263723,-1436.8,0.0001378,2]
[353358326,1739794263732,-2118.71,0.0001378,2]
[353358327,1739794263742,-500.0,0.0001378,2]
[353358328,1739794263751,-500.0,0.0001378,2]
[353358329,1739794263761,-6289.11,0.0001378,2]
[353358330,1739794263772,-500.0,0.0001378,2]
[353358331,1739794263782,-1132.66,0.0001378,2]
[353358332,1739794263792,-151.0,0.0001378,2]
[353358333,1739794263802,-150.0,0.0001378,2]
[353358334,1739794263811,-662.73,0.0001378,2]
[353358335,1739794263822,-500.0,0.0001378,2]
[353358336,1739794263831,-724.36,0.0001378,2]
[353358337,1739794263841,-1257.32,0.0001378,2]
[353358338,1739794263850,-1284.41,0.0001378,2]
[353358339,1739794263860,-1296.64,0.0001378,2]
[353358340,1739794263870,-150.0,0.0001378,2]
[353358341,1739794263881,-150.0,0.0001378,2]
[353358342,1739794263891,-500.0,0.0001378,2]